bitfinex-derivatives/quotes_SOLF0:USTF0_20250720
["timestamp","ask_amount","ask_price","bid_price","bid_amount"]
[1753016050465,11.0147,182.08,182.03,5.491]
[1753016050674,14.2047,182.08,182.04,3.15]
[1753016050874,14.20467621,182.08,182.04,3.15]
[1753016051073,8.71497621,182.08,182.05,3.15]
[1753016051272,8.71497621,182.08,182.06,3.15]
[1753016051469,3.19,182.08,182.07,3.15]
[1753016052676,8.6797,182.08,182.07,3.15]
[1753016053072,3.19,182.08,182.07,3.15]
[1753016053269,3.19,182.11,182.06,3.15]
[1753016053473,369.48,182.12,182.05,5.4906]
[1753016053778,8.6794,182.09,182.08,3.15]
[1753016054072,105.14,182.13,182.07,3.15]
[1753016054276,3.19,182.12,182.05,3.15]
[1753016054580,3.19,182.12,181.99,4.43210505]
[1753016054581,3.19,182.12,181.99,3.15]
[1753016054769,3.19,182.12,182.0,5.4919]
[1753016054975,3.19,182.12,181.99,3.15]
[1753016055274,8.715,182.12,181.99,3.15]
[1753016055474,3.19,182.11,181.99,3.15]
[1753016055873,105.1,182.12,181.98,154.56502131]
[1753016055874,5.4898,182.08,182.02,5.4914]
[1753016056076,3.19,182.07,182.03,3.15]
[1753016056576,3.19,182.07,182.02,3.15]
[1753016056577,3.19,182.06,182.02,3.15]
[1753016056776,5.525,182.11,182.03,3.15]
[1753016056777,3.19,182.05,182.03,3.15]
[1753016056979,3.19,182.04,182.03,3.15]
[1753016058480,3.19,182.05,182.03,3.15]
[1753016058676,3.19,182.04,181.99,3.15]
[1753016058880,3.19,182.04,181.98,154.56502131]
[1753016059183,8.6824,181.99,181.98,154.56502131]
[1753016059373,3.19,181.99,181.98,157.71502131]
[1753016059572,5.525,182.06,181.98,157.71502131]
[1753016059779,5.525,182.02,181.98,157.71502131]
[1753016059979,3.19,182.01,181.98,157.71502131]
[1753016060179,3.19,181.99,181.98,157.71502131]
[1753016060577,8.6824,181.99,181.98,154.56502131]
[1753016061979,8.6824,181.99,181.91,5.4946]
[1753016061980,3.19,181.94,181.91,3.15]
[1753016062181,5.525,182.03,181.91,3.15]
[1753016062182,3.19,182.02,181.91,3.15]
[1753016062681,5.4939,181.95,181.91,3.15]
[1753016062883,22.015,182.03,181.88,5.4957]
[1753016063079,104.98,182.04,181.88,5.4957]
[1753016063080,3.19,181.99,181.89,3.15]
[1753016063477,5.525,181.98,181.89,3.15]
[1753016063681,3.19,181.97,181.89,3.15]
[1753016063977,3.19,181.96,181.89,3.15]
[1753016065187,3.19,181.91,181.9,3.15]
[1753016065377,22.015,182.0,181.9,3.15]
[1753016065378,3.19,181.92,181.9,3.15]
[1753016065784,3.19,181.92,181.91,3.15]
[1753016066586,3.19,181.91,181.9,3.15]
[1753016066790,3.19,181.93,181.89,3.15]
[1753016067088,3.19,181.92,181.9,3.15]
[1753016067488,3.19,182.03,181.9,3.15]
[1753016067792,3.19,181.99,181.82,3.15]
[1753016067976,3.19,181.99,181.87,3.23]
[1753016068388,5.4952,181.9,181.87,3.23]
[1753016068587,3.01,181.88,181.87,3.23]
[1753016069284,3.01,181.9,181.8,3.23]
[1753016069485,3.01,181.9,181.82,3.23]
[1753016069682,3.01,181.89,181.84,3.23]
[1753016069885,3.01,181.89,181.8,3.23]
[1753016070187,3.01,181.99,181.81,4.4579421]
[1753016070389,3.01,181.97,181.83,3.23]
[1753016070690,5.4951,181.9,181.84,5.4969]
[1753016070892,105.12,181.98,181.86,3.23]
[1753016071193,5.4962,181.87,181.84,3.23]
[1753016071487,3.01,181.85,181.84,3.23]
[1753016072389,5.4958,181.88,181.85,3.23]
[1753016072586,3.01,181.86,181.83,3.23]
[1753016072784,3.01,181.85,181.84,3.23]
[1753016072984,369.44,181.96,181.76,369.3]
[1753016073189,369.44,181.96,181.8,5.4981]
[1753016073190,5.4965,181.86,181.8,5.4981]
[1753016073490,3.01,181.84,181.82,3.23]
[1753016073698,3.01,181.95,181.82,3.23]
[1753016073885,3.01,181.83,181.79,3.23]
[1753016074190,3.01,181.82,181.79,3.23]
[1753016074387,3.01,181.83,181.8,3.23]
[1753016074785,5.4961,181.87,181.81,5.4976]
[1753016074985,3.01,181.85,181.82,3.23]
[1753016075283,3.01,181.85,181.84,3.23]
[1753016075790,8.5066,181.85,181.84,3.23]
[1753016075993,8.5066,181.85,181.74,3.23]
[1753016076291,8.5066,181.85,181.79,3.23]
[1753016076487,3.01,181.85,181.79,3.23]
[1753016076881,104.92,181.92,181.8,3.23]
[1753016077082,3.01,181.84,181.8,3.23]
[1753016078092,3.01,181.83,181.8,3.23]
[1753016078392,3.01,181.83,181.71,3.23]
[1753016078588,3.01,181.83,181.73,3.23]
[1753016078795,3.01,181.82,181.73,3.23]
[1753016078993,3.01,181.8,181.7,3.23]
[1753016079389,3.01,181.72,181.7,3.23]
[1753016079786,3.01,181.8,181.71,3.23]
[1753016079993,5.4999,181.75,181.71,3.23]
[1753016080290,3.01,181.74,181.72,3.23]
[1753016080497,3.01,181.78,181.72,3.23]
[1753016080890,3.01,181.78,181.59,3.23]
[1753016081097,3.01,181.78,181.61,3.23]
[1753016081098,3.01,181.77,181.61,3.23]
[1753016081394,3.01,181.77,181.63,3.23]
[1753016081589,5.5009,181.71,181.64,5.5029]
[1753016081895,8.5109,181.71,181.65,3.23]
[1753016082395,3.01,181.71,181.65,3.23]
[1753016083298,3.01,181.71,181.65,5.5025]
[1753016083497,3.01,181.71,181.66,3.23]
[1753016083994,3.01,181.78,181.66,3.23]
[1753016084392,5.4992,181.77,181.72,3.23]
[1753016084595,3.01,181.77,181.72,3.23]
[1753016084796,8.5091,181.77,181.72,3.23]
[1753016085699,3.01,181.76,181.72,3.23]
[1753016086100,8.5088,181.78,181.72,8.7305]
[1753016086294,8.5088,181.78,181.73,3.23]
[1753016087200,3.01,181.75,181.66,3.23]
[1753016087397,3.01,181.73,181.66,3.23]
[1753016087796,3.01,181.68,181.66,3.23]
[1753016088097,3.01,181.73,181.67,3.23]
[1753016088794,5.501,181.71,181.67,3.23]
[1753016089100,3.01,181.7,181.68,3.23]
[1753016089899,8.5112,181.7,181.68,3.23]
[1753016091506,3.01,181.69,181.63,3.23]
[1753016091709,3.01,181.74,181.63,3.23]
[1753016092107,5.5006,181.72,181.66,5.5021]
[1753016092306,5.5006,181.72,181.67,3.23]
[1753016092501,8.5106,181.72,181.67,3.23]
[1753016092705,3.01,181.88,181.68,3.23]
[1753016092909,3.01,181.88,181.7,3.23]
[1753016093097,3.01,181.88,181.67,144.0]
[1753016093098,3.01,181.88,181.72,3.23]
[1753016093301,3.01,181.88,181.64,104.54]
[1753016093302,3.01,181.88,181.74,3.23]
[1753016093504,3.01,181.88,181.75,4.39576018]
[1753016093701,8.535,181.88,181.8,5.4981]
[1753016093908,8.535,181.88,181.81,3.23]
[1753016094409,14.0308,181.88,181.83,3.23]
[1753016095310,8.535,181.93,181.83,3.23]
[1753016095907,3.01,181.92,181.83,3.23]
[1753016096110,3.01,181.92,181.84,3.23]
[1753016096813,3.01,181.96,181.84,3.23]
[1753016097808,3.01,181.96,181.84,5.4967]
[1753016098013,3.01,181.96,181.85,3.23]
[1753016098409,5.4943,181.93,181.85,8.7264]
[1753016098615,3.07,181.92,181.86,3.17]
[1753016099016,16.49,181.92,181.77,4.52570309]
[1753016099211,3.07,181.91,181.71,4.52570309]
[1753016099413,3.07,181.89,181.72,4.41049805]
[1753016099612,3.07,181.89,181.74,4.52570309]
[1753016099811,3.07,181.89,181.75,4.41049805]
[1753016100012,3.07,181.89,181.76,4.41049805]
[1753016100213,3.07,181.89,181.77,4.41049805]
[1753016100414,3.07,181.89,181.76,5.4993]
[1753016100614,3.07,181.89,181.77,4.41185482]
[1753016100815,5.4975,181.83,181.78,4.4116711]
[1753016101020,3.07,181.83,181.77,8.669]
[1753016101215,3.07,181.83,181.78,4.41166502]
[1753016101414,3.07,181.83,181.79,3.17]
[1753016102016,3.07,181.83,181.8,3.17]
[1753016102217,3.07,181.83,181.81,3.17]
[1753016102721,5.4976,181.82,181.81,3.17]
[1753016103121,3.07,181.85,181.82,3.17]
[1753016103321,3.07,181.84,181.82,3.17]
[1753016104322,5.497,181.84,181.83,3.17]
[1753016104720,8.567,181.84,181.83,3.17]
[1753016104920,3.07,181.89,181.81,3.17]
[1753016105120,8.595,181.89,181.75,3.17]
[1753016105316,5.4978,181.82,181.77,3.17]
[1753016105522,3.07,181.81,181.78,4.42896213]
[1753016105723,3.07,181.81,181.79,7.59896213]
[1753016105917,3.07,181.81,181.8,3.17]
[1753016106419,5.4973,181.83,181.8,3.17]
[1753016106823,5.4973,181.83,181.76,5.4993]
[1753016107026,5.4973,181.83,181.81,3.17]
[1753016107921,5.497,181.84,181.81,3.17]
[1753016108425,3.07,181.83,181.81,3.17]
[1753016109726,8.5673,181.83,181.81,3.17]
[1753016111128,3.07,181.82,181.81,3.17]
[1753016112422,3.07,181.82,181.73,4.52570309]
[1753016112728,3.07,181.82,181.75,3.17]
[1753016112927,5.4983,181.8,181.76,4.44095423]
[1753016113129,3.07,181.78,181.77,3.17]
[1753016115224,8.5687,181.78,181.77,3.17]
[1753016115431,3.07,181.77,181.74,3.17]
[1753016115619,3.07,181.79,181.7,3.17]
[1753016115824,3.07,181.79,181.72,3.17]
[1753016117429,3.07,181.74,181.72,3.17]
[1753016117625,20.93844072,181.74,181.73,3.17]
[1753016117926,17.86844072,181.74,181.73,3.17]
[1753016118730,20.93844072,181.74,181.65,3.17]
[1753016118931,20.93844072,181.74,181.67,3.17]
[1753016119132,20.93844072,181.74,181.7,5.5012]
[1753016119330,20.93844072,181.74,181.71,3.17]
[1753016119535,20.93844072,181.74,181.72,3.17]
[1753016120130,20.93844072,181.74,181.7,5.5012]
[1753016120331,20.93844072,181.74,181.73,3.17]
[1753016121736,3.07,181.73,181.72,3.17]
[1753016121937,17.86844072,181.74,181.73,3.17]
[1753016122132,20.93844072,181.74,181.73,3.17]
[1753016122938,17.86844072,181.74,181.73,3.17]
[1753016123938,17.86844072,181.74,181.73,8.6703]
[1753016124640,17.86844072,181.74,181.73,3.17]
[1753016125838,17.86844072,181.74,181.73,8.6703]
[1753016127242,17.86844072,181.74,181.73,3.17]
[1753016127737,20.93844072,181.74,181.64,4.52570309]
[1753016127938,20.93844072,181.74,181.65,7.6243842]
[1753016128138,20.93844072,181.74,181.67,3.13]
[1753016128339,3.14,181.79,181.7,3.13]
[1753016128638,17.40744791,181.8,181.72,3.13]
[1753016128842,22.90554791,181.8,181.75,5.4996]
[1753016129042,26.04554791,181.8,181.76,3.13]
[1753016129236,3.14,181.79,181.76,3.13]
[1753016129842,3.14,181.79,181.78,3.13]
[1753016131838,17.40744791,181.8,181.78,3.13]
[1753016132045,17.40744791,181.8,181.78,8.6285]
[1753016132246,17.40744791,181.8,181.79,3.13]
[1753016136340,17.40744791,181.8,181.79,8.6284]
[1753016137345,9.21744791,181.8,181.79,8.6284]
[1753016140149,9.21744791,181.8,181.79,13.0732706]
[1753016140348,3.14,181.83,181.81,5.4978]
[1753016140646,17.97174584,181.84,181.73,4.52570309]
[1753016140852,3.14,181.83,181.82,5.4974]
[1753016141442,17.97174584,181.84,181.83,5.4972]
[1753016141843,3.14,181.88,181.75,4.52570309]
[1753016142049,3.14,181.88,181.76,4.44338662]
[1753016142247,3.14,181.88,181.77,4.44338662]
[1753016142449,3.14,181.88,181.87,5.496]
[1753016144656,3.14,181.9,181.78,4.52570309]
[1753016144859,358.66537918,181.91,181.76,6.03427078]
[1753016145058,358.66537918,181.91,181.9,5.4951]
[1753016145358,361.80537918,181.91,181.9,5.4951]
[1753016146662,3.14,181.94,181.81,4.52678879]
[1753016146852,3.14,181.94,181.82,8.95718404]
[1753016147052,3.14,181.94,181.83,8.95718404]
[1753016147357,3.14,181.93,181.92,5.4943]
[1753016149060,3.14,181.92,181.83,10.9944]
[1753016149259,3.14,181.92,181.84,4.4245973]
[1753016149457,3.14,181.92,181.85,4.4245973]
[1753016149657,3.14,181.92,181.86,4.4245973]
[1753016149958,3.14,181.91,181.87,4.4245973]
[1753016150154,3.14,181.91,181.83,10.9944]
[1753016150353,3.14,181.91,181.9,5.4951]
[1753016153463,3.14,181.96,181.84,4.41546282]
[1753016153652,5.495,181.91,181.78,10.9973]
[1753016153856,3.14,181.9,181.79,4.41710595]
[1753016154055,3.14,181.9,181.8,4.41710595]
[1753016154255,3.14,181.9,181.81,4.41710595]
[1753016154459,3.14,181.9,181.82,4.41710595]
[1753016154662,3.14,181.9,181.83,4.41710595]
[1753016154861,3.14,181.9,181.84,4.41710595]
[1753016155064,3.14,181.9,181.89,5.4954]
[1753016160471,3.14,181.9,181.84,4.40935816]
[1753016160666,3.14,181.9,181.79,10.9965]
[1753016160858,3.14,181.9,181.8,4.40870003]
[1753016161057,3.14,181.9,181.88,5.4955]
[1753016161260,13.74072847,181.91,181.82,10.9948]
[1753016161466,3.17,181.9,181.83,4.40757898]
[1753016161664,3.17,181.9,181.82,10.9948]
[1753016161968,3.17,181.9,181.83,4.40858328]
[1753016162263,3.17,181.9,181.84,4.40858328]
[1753016162464,3.17,181.9,181.82,10.9948]
[1753016162664,3.17,181.9,181.89,5.4954]
[1753016162959,3.17,181.9,181.83,4.40860398]
[1753016162960,10.57072847,181.91,181.84,4.40860398]
[1753016163157,2.847e-05,181.91,181.85,4.40804038]
[1753016163365,2.847e-05,181.91,181.86,4.40731771]
[1753016163562,3.17,181.94,181.82,103.02]
[1753016163762,3.17,181.94,181.84,4.52678879]
[1753016163965,3.17,181.94,181.85,4.39336794]
[1753016164266,3.17,181.94,181.86,4.39336794]
[1753016164470,3.17,181.94,181.93,5.4942]
[1753016165466,3.17,181.94,181.92,5.4944]
[1753016165861,3.17,181.94,181.82,4.52678879]
[1753016166064,3.17,181.93,181.9,5.4949]
[1753016166262,3.17,181.92,181.9,5.4949]
[1753016166858,10.43878375,181.93,181.81,15.52198879]
[1753016167063,3.17,181.92,181.82,15.3884487]
[1753016167262,3.17,181.92,181.83,4.3933487]
[1753016167465,3.17,181.92,181.84,4.3933487]
[1753016167667,3.17,181.92,181.91,5.4948]
[1753016168262,3.17,181.92,181.81,4.52678879]
[1753016168462,16.49,181.89,181.73,4.52678879]
[1753016168667,3.17,181.87,181.74,4.40149581]
[1753016168867,5.4981,181.81,181.75,5.4996]
[1753016169065,3.17,181.8,181.68,4.52678879]
[1753016169374,3.17,181.76,181.69,4.40353668]
[1753016169564,3.17,181.76,181.62,4.52678879]
[1753016169764,3.17,181.76,181.63,4.41049916]
[1753016169969,3.17,181.7,181.64,4.41049916]
[1753016170170,3.17,181.69,181.6,369.46]
[1753016170365,3.17,181.69,181.61,4.41109765]
[1753016170569,3.17,181.69,181.65,5.5024]
[1753016170770,3.17,181.69,181.6,369.46]
[1753016170969,3.17,181.69,181.61,4.40961565]
[1753016171271,3.17,181.69,181.62,4.40961565]
[1753016171466,3.17,181.69,181.63,4.40961565]
[1753016171665,3.17,181.78,181.64,4.40961565]
[1753016171866,3.17,181.78,181.68,5.5017]
[1753016172061,3.17,181.78,181.61,107.58678879]
[1753016172262,3.17,181.78,181.62,4.40662278]
[1753016172466,3.17,181.72,181.67,5.5018]
[1753016172664,3.17,181.72,181.61,103.06]
[1753016172864,3.17,181.72,181.62,4.4063743]
[1753016173064,3.17,181.7,181.63,4.4063743]
[1753016173268,3.17,181.7,181.64,4.4063743]
[1753016173469,3.17,181.7,181.66,5.5021]
[1753016173673,3.17,181.7,181.6,472.48]
[1753016173876,3.17,181.7,181.61,4.40599821]
[1753016174077,3.17,181.7,181.66,5.5021]
[1753016174370,3.17,181.7,181.6,472.48]
[1753016174571,3.17,181.7,181.61,4.40539607]
[1753016174771,3.17,181.7,181.62,4.40539607]
[1753016174982,3.17,181.7,181.63,4.40539607]
[1753016175179,3.17,181.71,181.67,5.5018]
[1753016175771,3.17,181.71,181.68,5.5017]
[1753016175979,3.17,181.74,181.61,102.98]
[1753016176177,3.17,181.74,181.73,5.5001]
[1753016176370,5.4984,181.8,181.65,4.52678879]
[1753016176576,3.17,181.79,181.66,4.39893575]
[1753016176876,3.17,181.79,181.74,5.4997]
[1753016178077,3.17,181.79,181.75,5.4996]
[1753016178384,3.17,181.79,181.69,103.0]
[1753016178576,3.17,181.79,181.7,4.39669897]
[1753016178771,3.17,181.81,181.71,4.39669897]
[1753016178975,3.17,181.81,181.72,4.39669897]
[1753016179176,3.17,181.81,181.7,4.52678879]
[1753016179177,3.17,181.81,181.73,4.39669897]
[1753016179481,3.17,181.89,181.74,4.39669897]
[1753016179676,3.17,181.89,181.75,4.39669897]
[1753016179884,3.17,181.86,181.76,4.39302035]
[1753016180085,3.17,181.86,181.77,4.39302035]
[1753016180380,3.17,181.86,181.78,4.39302035]
[1753016180580,3.17,181.86,181.79,4.39302035]
[1753016180883,3.17,181.86,181.8,4.39302035]
[1753016181084,3.17,181.85,181.84,5.4967]
[1753016182586,3.17,181.88,181.77,103.0]
[1753016182975,5.4949,181.91,181.77,103.0]
[1753016182976,3.17,181.9,181.77,103.0]
[1753016185183,5.4952,181.9,181.77,103.0]
[1753016185382,3.17,181.89,181.77,103.0]
[1753016185877,21.988,181.97,181.73,369.72]
[1753016186081,3.17,181.96,181.74,102.9]
[1753016186278,8.668,181.94,181.74,4.38708714]
[1753016186483,21.988,181.93,181.73,369.72]
[1753016186785,25.158,181.9,181.73,369.72]
[1753016186981,19.66,181.89,181.73,369.72]
[1753016187688,3.17,181.88,181.73,369.72]
[1753016187884,5.498,181.87,181.73,369.72]
[1753016188184,3.06,181.86,181.71,102.92]
[1753016188987,3.06,181.78,181.74,5.4998]
[1753016189888,3.06,181.82,181.71,102.92]
[1753016190083,8.558,181.93,181.71,102.92]
[1753016190487,5.4964,181.86,181.82,5.4974]
[1753016190682,3.06,181.84,181.82,5.4974]
[1753016191286,3.06,181.95,181.71,102.92]
[1753016191787,5.4955,181.89,181.72,369.64]
[1753016192087,3.06,181.88,181.72,369.64]
[1753016192578,8.5558,181.88,181.72,369.64]
[1753016192889,5.4958,181.88,181.72,369.64]
[1753016193087,3.06,181.87,181.72,369.64]
[1753016193288,3.06,181.86,181.72,369.64]
[1753016193688,3.06,181.86,181.82,5.4973]
[1753016194789,3.06,181.86,181.72,369.64]
[1753016195490,8.5566,181.86,181.8,5.4979]
[1753016195787,3.06,181.85,181.8,5.4979]
[1753016195986,3.06,181.85,181.72,369.64]
[1753016196196,3.06,181.85,181.8,5.4979]
[1753016196384,3.06,181.85,181.72,374.13774168]
[1753016196585,3.06,181.85,181.73,4.39236244]
[1753016196784,3.06,181.85,181.74,4.39236244]
[1753016196988,3.06,181.85,181.75,4.39236244]
[1753016197188,3.06,181.85,181.81,5.4976]
[1753016197701,3.06,181.85,181.82,5.4975]
[1753016197890,3.06,181.95,181.78,102.86]
[1753016198194,3.06,181.95,181.79,4.39180026]
[1753016198394,3.06,181.95,181.83,5.497]
[1753016198593,5.4956,181.89,181.78,102.86]
[1753016198793,3.06,181.88,181.79,4.39199901]
[1753016198993,3.06,181.88,181.83,5.497]
[1753016199189,3.06,181.87,181.83,5.497]
[1753016200502,3.06,181.87,181.84,5.4969]
[1753016200996,3.06,181.87,181.78,102.86]
[1753016201192,3.06,181.87,181.79,4.39239471]
[1753016201392,3.06,181.87,181.78,102.86]
[1753016201591,3.06,181.87,181.79,4.39294026]
[1753016201799,5.4961,181.87,181.82,5.4973]
[1753016201993,3.06,181.86,181.82,5.4973]
[1753016202800,3.06,181.85,181.81,5.4977]
[1753016202999,3.06,181.85,181.73,4.49806449]
[1753016203301,5.4975,181.82,181.78,5.4985]
[1753016203494,3.06,181.81,181.73,102.74]
[1753016203691,5.5008,181.72,181.67,5.5018]
[1753016203895,5.5008,181.72,181.62,5.99698891]
[1753016203896,16.49,181.78,181.62,4.49806449]
[1753016204094,16.49,181.74,181.59,7.65806449]
[1753016204301,5.5019,181.68,181.61,5.5039]
[1753016204501,3.06,181.67,181.59,3.16]
[1753016206096,3.06,181.67,181.6,5.5041]
[1753016206302,3.06,181.67,181.57,3.16]
[1753016207494,5.5027,181.65,181.58,5.5045]
[1753016207797,28.76304708,181.78,181.57,3.16]
[1753016207798,3.06,181.64,181.57,3.16]
[1753016208601,3.06,181.63,181.58,3.16]
[1753016208802,21.988,181.76,181.54,3.16]
[1753016209001,16.49,181.74,181.54,3.16]
[1753016209201,3.06,181.68,181.62,5.5033]
[1753016209507,3.06,181.68,181.54,3.16]
[1753016209807,3.06,181.68,181.63,5.5032]
[1753016210002,3.06,181.68,181.6,3.16]
[1753016210206,3.06,181.68,181.66,5.5021]
[1753016210405,3.06,181.67,181.66,5.5021]
[1753016212603,3.06,181.72,181.65,3.16]
[1753016213513,3.06,181.72,181.59,3.16]
[1753016214012,8.5606,181.72,181.66,5.5021]
[1753016214205,3.06,181.71,181.66,5.5021]
[1753016214515,3.06,181.71,181.63,3.16]
[1753016215808,3.06,181.71,181.66,5.5022]
[1753016216515,3.06,181.76,181.59,3.16]
[1753016216714,3.06,181.76,181.61,3.16]
[1753016217014,3.06,181.76,181.63,3.16]
[1753016217815,5.5002,181.73,181.67,5.5018]
[1753016218011,3.06,181.72,181.67,5.5018]
[1753016218211,3.06,181.72,181.64,3.16]
[1753016218408,5.5,181.74,181.58,4.49806449]
[1753016218608,2.93,181.73,181.6,2.99]
[1753016218912,8.4305,181.73,181.67,5.5018]
[1753016219114,2.93,181.72,181.67,5.5018]
[1753016219614,8.4306,181.72,181.67,5.5018]
[1753016219822,2.93,181.76,181.59,2.99]
[1753016220121,5.5015,181.69,181.61,2.99]
[1753016220310,2.93,181.68,181.63,5.5032]
[1753016220515,2.93,181.68,181.61,2.99]
[1753016221015,2.93,181.68,181.64,5.5027]
[1753016222316,2.93,181.68,181.65,5.5026]
[1753016224415,2.93,181.68,181.62,2.99]
[1753016224817,2.93,181.68,181.65,5.5024]
[1753016225017,5.5009,181.71,181.65,5.5024]
[1753016225217,2.93,181.7,181.65,5.5024]
[1753016225418,2.93,181.7,181.64,5.5029]
[1753016226422,2.93,181.7,181.65,5.5025]
[1753016226925,2.93,181.7,181.56,2.99]
[1753016227223,2.93,181.75,181.66,5.5023]
[1753016227521,16.49,181.72,181.61,2.99]
[1753016227724,2.93,181.71,181.61,2.99]
[1753016227920,5.5023,181.67,181.61,2.99]
[1753016228118,2.93,181.66,181.6,5.5039]
[1753016228518,2.93,181.66,181.61,5.5037]
[1753016228720,2.93,181.66,181.61,8.4937]
[1753016228924,2.93,181.66,181.62,2.99]
[1753016229328,2.93,181.66,181.62,8.4934]
[1753016230815,2.93,181.69,181.57,2.99]
[1753016231015,2.93,181.69,181.52,4.49806449]
[1753016231016,2.93,181.69,181.58,4.35514668]
[1753016231328,2.93,181.69,181.59,2.99]
[1753016233531,2.93,181.69,181.61,2.99]
[1753016233724,2.93,181.69,181.68,5.5017]
[1753016233925,2.93,181.69,181.68,8.4917]
[1753016235125,2.93,181.76,181.67,5.5019]
[1753016235431,2.93,181.71,181.59,2.99]
[1753016236232,2.93,181.71,181.63,5.503]
[1753016236233,2.93,181.7,181.63,5.503]
[1753016236628,2.93,181.7,181.64,2.99]
[1753016236927,2.93,181.7,181.66,2.99]
[1753016237230,2.93,181.7,181.57,2.99]
[1753016237432,2.93,181.7,181.65,5.5026]
[1753016237729,2.93,181.7,181.65,8.4926]
[1753016237931,2.93,181.7,181.57,2.99]
[1753016238131,2.93,181.7,181.59,2.99]
[1753016238329,2.93,181.7,181.55,4.49806449]
[1753016238330,2.93,181.7,181.61,2.99]
[1753016238931,2.93,181.7,181.64,5.5027]
[1753016239935,2.93,181.7,181.65,5.5026]
[1753016240535,2.93,181.7,181.63,2.99]
[1753016241535,2.93,181.7,181.66,5.5021]
[1753016241727,2.93,181.7,181.66,8.4921]
[1753016242223,2.93,181.72,181.58,2.99]
[1753016242430,2.93,181.72,181.59,8.860478]
[1753016242631,2.93,181.72,181.61,2.99]
[1753016242932,2.93,181.72,181.63,2.99]
[1753016243134,2.93,181.72,181.65,2.99]
[1753016243528,2.93,181.72,181.66,4.36718141]
[1753016243725,2.93,181.72,181.6,2.99]
[1753016243926,5.5011,181.7,181.62,5.5033]
[1753016244128,2.93,181.69,181.62,5.5033]
[1753016244525,2.93,181.69,181.63,5.5032]
[1753016246934,8.4315,181.69,181.62,2.99]
[1753016247134,2.93,181.68,181.63,4.38619259]
[1753016247335,2.93,181.68,181.59,2.99]
[1753016247530,2.93,181.68,181.6,4.38703899]
[1753016247737,2.93,181.68,181.61,4.38703899]
[1753016247929,2.93,181.68,181.62,4.38703899]
[1753016248234,2.93,181.68,181.63,4.38703899]
[1753016248435,2.93,181.68,181.64,4.38703899]
[1753016248637,2.93,181.68,181.65,4.38703899]
[1753016248935,5.5022,181.67,181.6,10.00216449]
[1753016249234,3.24,181.66,181.61,7.65268368]
[1753016249434,3.24,181.66,181.62,4.40268368]
[1753016249638,3.24,181.66,181.63,4.40268368]
[1753016249933,3.24,181.66,181.64,4.40268368]